bitfinex/quotes_BTCUSD_20251226
["timestamp","ask_amount","ask_price","bid_price","bid_amount"]
[1766778392337,0.01141135,87632.0,87629.0,3.1e-07]
[1766778392537,0.05705808,87631.0,87629.0,3.1e-07]
[1766778392955,0.10273808,87631.0,87629.0,3.1e-07]
[1766778393495,0.10273808,87631.0,87592.0,0.04073787]
[1766778393496,0.05706881,87614.0,87592.0,0.04073787]
[1766778393809,0.01141396,87612.0,87593.0,0.06188846]
[1766778393954,0.01148,87613.0,87594.0,0.0114163]
[1766778394307,0.01148,87613.0,87595.0,0.01141617]
[1766778394453,0.01148,87613.0,87592.0,0.1212582]
[1766778394660,0.01148,87613.0,87598.0,0.01141578]
[1766778394876,0.01148,87613.0,87598.0,0.06849464]
[1766778395093,0.01148,87613.0,87598.0,0.01141578]
[1766778395486,0.01148,87613.0,87599.0,0.01141565]
[1766778395682,0.06847886,87619.0,87599.0,0.01141565]
[1766778395683,0.01141148,87631.0,87609.0,0.06848595]
[1766778396003,0.0002,87622.0,87610.0,0.01826282]
[1766778396203,0.01148,87621.0,87610.0,0.0068486]
[1766778396452,0.01148,87621.0,87606.0,0.01141474]
[1766778396657,0.01148,87621.0,87608.0,0.01141448]
[1766778397015,0.01148,87621.0,87607.0,0.01141461]
[1766778397649,0.01148,87621.0,87608.0,0.01141448]
[1766778398028,0.01148,87621.0,87610.0,0.01141422]
[1766778398413,0.010823,87621.0,87608.0,0.01141448]
[1766778398621,0.010823,87621.0,87610.0,0.01141422]
[1766778399153,0.010823,87621.0,87611.0,0.01141409]
[1766778399366,0.010823,87621.0,87611.0,0.02739426]
[1766778399585,0.010823,87621.0,87612.0,0.01141396]
[1766778399778,0.010823,87621.0,87611.0,0.02739426]
[1766778400221,0.00595394,87621.0,87612.0,0.01141396]
[1766778400395,0.0002,87622.0,87613.0,0.01141383]
[1766778400611,0.01148,87621.0,87614.0,0.01187067]
[1766778401206,0.01148,87621.0,87614.0,0.02328437]
[1766778401434,0.00882365,87621.0,87618.0,0.01141317]
[1766778401645,0.00882365,87621.0,87616.0,0.01141344]
[1766778401997,0.00882365,87621.0,87617.0,0.01141331]
[1766778402197,0.00882365,87621.0,87616.0,0.01141344]
[1766778402563,0.00882365,87621.0,87617.0,0.01141331]
[1766778402909,0.00882365,87621.0,87616.0,0.01141344]
[1766778403520,0.01141083,87636.0,87616.0,0.01141344]
[1766778403521,0.01141018,87641.0,87618.0,0.01141317]
[1766778403719,0.64810012,87660.0,87616.0,0.06197629]
[1766778403720,0.01141044,87639.0,87616.0,0.06197629]
[1766778403943,0.01141083,87636.0,87617.0,0.01141331]
[1766778404385,0.0114107,87637.0,87617.0,0.01141331]
[1766778404526,0.0114107,87637.0,87618.0,0.02222228]
[1766778405169,0.01141083,87636.0,87618.0,0.00422228]
[1766778405581,0.0572,87640.0,87618.0,0.00422228]
[1766778405773,0.01141174,87629.0,87618.0,0.00422228]
[1766778405994,0.01141252,87623.0,87601.0,0.05707643]
[1766778406221,0.01141252,87623.0,87598.0,0.0684943]
[1766778406222,0.05706394,87621.0,87598.0,0.0684943]
[1766778406455,0.02289265,87622.0,87601.0,0.06849193]
[1766778406666,0.01148,87622.0,87604.0,0.011415]
[1766778406887,0.02289265,87622.0,87605.0,0.07041622]
[1766778407096,0.01141304,87619.0,87605.0,0.07041622]
[1766778407299,0.01141344,87616.0,87605.0,0.07041622]
[1766778407418,0.01141344,87616.0,87602.0,0.0002]
[1766778407620,0.01141331,87617.0,87602.0,0.0002]
[1766778408035,0.01141317,87618.0,87602.0,0.0002]
[1766778408258,0.48722257,87652.0,87602.0,0.0002]
[1766778408259,0.01141278,87621.0,87602.0,0.0002]
[1766778409514,0.01141291,87620.0,87602.0,0.0002]
[1766778410430,0.01141278,87621.0,87602.0,0.01161526]
[1766778410613,0.01141278,87621.0,87602.0,0.04682762]
[1766778410825,0.01141291,87620.0,87602.0,0.03541236]
[1766778411027,0.01141317,87618.0,87602.0,0.03541236]
[1766778411447,0.01141317,87618.0,87602.0,0.0002]
[1766778411448,0.01141331,87617.0,87602.0,0.0002]
[1766778411659,0.01141304,87619.0,87582.0,0.0002]
[1766778411660,0.05707412,87606.0,87582.0,0.0002]
[1766778411860,0.01141461,87607.0,87582.0,0.0002]
[1766778411861,0.0002,87602.0,87587.0,0.01141721]
[1766778412068,0.01148,87605.0,87587.0,0.01141721]
[1766778412599,0.02289487,87605.0,87584.0,0.01141761]
[1766778412832,0.02289487,87605.0,87582.0,0.11907752]
[1766778412833,0.01141552,87600.0,87582.0,0.11907752]
[1766778413027,0.01148,87605.0,87582.0,0.0002]
[1766778413028,0.01141617,87595.0,87582.0,0.0002]
[1766778413259,7.3e-05,87592.0,87582.0,0.00055788]
[1766778413662,0.01148,87594.0,87582.0,0.00055788]
[1766778413856,0.0228963,87594.0,87582.0,0.00055788]
[1766778414062,0.01141643,87593.0,87582.0,0.00055788]
[1766778414479,0.0228963,87594.0,87582.0,0.00055788]
[1766778414690,0.01141643,87593.0,87582.0,0.00055788]
[1766778418334,0.01128839,87594.0,87582.0,0.01141787]
[1766778418530,0.01128839,87594.0,87584.0,0.0002]
[1766778419273,0.01128839,87594.0,87584.0,0.02923488]
[1766778420065,0.000349,87584.0,87570.0,0.06275036]
[1766778420193,0.01148,87583.0,87568.0,0.11887752]
[1766778420397,0.01148,87583.0,87568.0,0.13029721]
[1766778420737,0.01148,87583.0,87568.0,0.11887752]
[1766778420937,0.01148,87583.0,87568.0,0.17991196]
[1766778421348,0.01148,87583.0,87570.0,0.01141943]
[1766778421483,0.01148,87583.0,87572.0,0.01141917]
[1766778421734,0.00035739,87594.0,87582.0,0.17596674]
[1766778421933,0.01148,87593.0,87585.0,0.01141748]
[1766778422155,0.01148,87593.0,87586.0,0.14257191]
[1766778422353,0.01148,87593.0,87586.0,0.08548529]
[1766778423435,0.01148,87593.0,87584.0,0.01141761]
[1766778423669,0.01148,87593.0,87585.0,0.01141748]
[1766778424220,0.01148,87593.0,87586.0,0.01141734]
[1766778424607,0.00968652,87593.0,87588.0,0.01141708]
[1766778424810,0.00019499,87593.0,87590.0,0.01141682]
[1766778424999,0.00019499,87593.0,87591.0,0.01027525]
[1766778425527,0.04592,87604.0,87591.0,0.01027525]
[1766778425528,0.04592,87604.0,87595.0,0.01141617]
[1766778425667,0.01148,87600.0,87597.0,0.11887752]
[1766778427892,0.04592,87604.0,87597.0,0.11887752]
[1766778428104,0.0574,87604.0,87597.0,0.11887752]
[1766778428302,0.0574,87604.0,87598.0,0.02775646]
[1766778429178,0.01986649,87604.0,87599.0,0.05707774]
[1766778429380,0.01148,87604.0,87602.0,0.05707601]
[1766778429522,0.01148,87610.0,87601.0,0.01141539]
[1766778429925,0.01148,87610.0,87603.0,0.01141513]
[1766778430125,0.01148,87610.0,87604.0,0.07431338]
[1766778430314,0.01148,87610.0,87605.0,0.06848879]
[1766778430516,0.01148,87610.0,87606.0,0.01141474]
[1766778430913,0.01148,87610.0,87607.0,0.01141461]
[1766778431332,0.01148,87610.0,87608.0,0.05707241]
[1766778431535,0.01148,87610.0,87609.0,0.00584601]
[1766778434714,0.01148,87610.0,87607.0,0.0684872]
[1766778436024,0.01148,87610.0,87608.0,0.05707185]
[1766778436373,0.01148,87619.0,87611.0,0.01141409]
[1766778436577,0.01158721,87619.0,87610.0,0.01141422]
[1766778436779,0.01158721,87619.0,87611.0,0.0200302]
[1766778437653,0.01158721,87619.0,87600.0,0.47099564]
[1766778437852,0.01158721,87619.0,87604.0,0.08572838]
[1766778438054,0.01158721,87619.0,87605.0,0.01141487]
[1766778438272,0.01158721,87619.0,87604.0,0.07431338]
[1766778438624,0.01158721,87619.0,87604.0,0.07072838]
[1766778438829,0.01158721,87619.0,87605.0,0.04723766]
[1766778439446,0.00055,87605.0,87602.0,0.01141526]
[1766778439645,0.01158721,87619.0,87602.0,0.01141526]
[1766778441342,0.01158721,87619.0,87603.0,0.01141513]
[1766778441914,0.01158721,87619.0,87602.0,0.01141526]
[1766778442099,0.01158721,87619.0,87600.0,0.01200282]
[1766778442258,0.01158721,87619.0,87601.0,0.03425238]
[1766778442461,0.01158721,87619.0,87601.0,0.04566777]
[1766778442927,0.01158721,87619.0,87602.0,0.01141526]
[1766778443524,0.01158721,87619.0,87601.0,0.04566777]
[1766778443683,0.01158721,87619.0,87602.0,0.01141526]
[1766778443886,0.01158721,87619.0,87603.0,0.08371379]
[1766778444085,0.01158721,87619.0,87605.0,0.01141487]
[1766778444292,0.01158721,87619.0,87603.0,0.08371379]
[1766778444494,0.01158721,87619.0,87604.0,0.011415]
[1766778445518,0.01158721,87619.0,87604.0,0.06848996]
[1766778445736,0.01158721,87619.0,87603.0,0.01141513]
[1766778445937,0.01158721,87619.0,87605.0,0.01141487]
[1766778447259,0.01158721,87619.0,87611.0,0.11887752]
[1766778447460,0.01158721,87619.0,87613.0,0.01141383]
[1766778447461,0.01103821,87619.0,87613.0,0.01141383]
[1766778447781,0.01103821,87619.0,87614.0,0.0114137]
[1766778447997,0.01103821,87619.0,87613.0,0.01141383]
[1766778448212,0.01103821,87619.0,87612.0,0.01531214]
[1766778449057,0.05707277,87608.0,87600.0,0.0005873]
[1766778449280,0.06848801,87607.0,87600.0,0.0005873]
[1766778449480,0.011415,87604.0,87600.0,0.0005873]
[1766778449690,0.06848801,87607.0,87600.0,0.0005873]
[1766778449929,0.01141487,87605.0,87600.0,0.0005873]
[1766778450145,0.01141591,87597.0,87594.0,0.0002]
[1766778450772,0.02289565,87599.0,87594.0,0.0002]
[1766778450924,0.01141591,87597.0,87594.0,0.0002]
[1766778451131,0.02289565,87599.0,87594.0,0.0002]
[1766778451356,0.02289565,87599.0,87583.0,0.11887752]
[1766778451550,0.01148,87599.0,87583.0,0.15618837]
[1766778451801,0.01141591,87597.0,87589.0,0.0002]
[1766778452209,0.01141578,87598.0,87589.0,0.0002]
[1766778453162,0.01141591,87597.0,87589.0,0.0002]
[1766778453343,0.06849829,87594.0,87573.0,0.01141904]
[1766778453556,0.01148,87599.0,87571.0,0.11887752]
[1766778453557,0.01141695,87589.0,87571.0,0.11887752]
[1766778453763,0.01148,87589.0,87572.0,0.01141917]
[1766778453964,0.01148,87589.0,87577.0,0.01141852]
[1766778454158,0.01148,87589.0,87578.0,0.05148667]
[1766778454429,0.01148,87589.0,87579.0,0.01141826]
[1766778454581,0.01148,87589.0,87581.0,0.011418]
[1766778454786,0.01148,87589.0,87586.0,0.11887752]
[1766778454993,0.01053,87589.0,87586.0,0.11887752]
[1766778455203,0.01053,87589.0,87587.0,0.0142071]
[1766778455372,0.01053,87589.0,87586.0,0.11887752]
[1766778455786,0.000549,87586.0,87581.0,0.00035739]
[1766778455989,0.01053,87589.0,87581.0,0.00035739]
[1766778461110,0.01141708,87588.0,87581.0,3.9e-07]
[1766778461345,0.01141774,87583.0,87563.0,0.06411826]
[1766778461517,0.00035739,87583.0,87564.0,0.01701645]
[1766778461718,0.00035739,87583.0,87564.0,0.02843666]
[1766778462145,0.01177513,87583.0,87564.0,0.02843666]
[1766778462353,0.011418,87581.0,87565.0,0.02693537]
[1766778462558,0.01148,87580.0,87565.0,0.02693537]
[1766778463879,0.01148,87580.0,87565.0,0.03835545]
[1766778464544,0.01148,87580.0,87565.0,0.02693537]
[1766778466406,0.01148,87580.0,87567.0,0.01141982]
[1766778466584,0.01148,87580.0,87566.0,0.01141995]
[1766778467832,0.01148,87580.0,87567.0,0.01141982]
[1766778468007,0.01148,87580.0,87566.0,0.01141995]
[1766778469146,0.01148,87580.0,87565.0,0.01142008]
[1766778469348,0.01148,87580.0,87565.0,0.05949508]
[1766778469555,0.01148,87580.0,87566.0,0.01141995]
[1766778469757,0.01148,87580.0,87565.0,0.05949508]
[1766778470067,0.01148,87580.0,87566.0,0.01141995]
[1766778470426,0.00035739,87583.0,87580.0,0.000357]
[1766778470640,0.00035739,87583.0,87576.0,0.01141865]
[1766778470857,0.00035739,87583.0,87580.0,0.00802883]
[1766778471291,0.00035739,87583.0,87574.0,0.01141891]
[1766778471502,0.00035739,87583.0,87573.0,0.01141904]
[1766778471715,0.00035739,87583.0,87574.0,0.01141891]
[1766778471907,0.00035739,87583.0,87575.0,0.01141878]
[1766778472153,0.00035739,87583.0,87574.0,0.01141891]
[1766778472336,0.00035739,87583.0,87575.0,0.02740549]
[1766778472896,0.00035739,87583.0,87575.0,0.01598671]
[1766778473140,3.9e-07,87583.0,87575.0,0.08449924]
[1766778473281,3.9e-07,87583.0,87576.0,0.01141865]
[1766778473476,3.9e-07,87583.0,87576.0,0.06851153]
[1766778473761,3.9e-07,87583.0,87577.0,0.02717719]
[1766778474095,3.9e-07,87583.0,87575.0,0.01598671]
[1766778474977,3.9e-07,87583.0,87575.0,0.02740549]
[1766778476420,3.9e-07,87583.0,87575.0,0.01598671]
[1766778478249,3.9e-07,87583.0,87575.0,0.02740549]
[1766778478421,3.9e-07,87583.0,87576.0,0.01141865]
[1766778478640,3.9e-07,87583.0,87577.0,0.01493433]
[1766778479071,0.01121736,87587.0,87577.0,0.01493433]
[1766778479271,0.01121736,87587.0,87577.0,0.01521605]
[1766778479834,0.01121736,87587.0,87579.0,0.06850914]
[1766778480189,0.01121736,87587.0,87579.0,0.01141826]
[1766778480414,0.01121736,87587.0,87580.0,0.05527913]
[1766778480589,0.01121736,87587.0,87581.0,0.011418]
[1766778480835,0.01121736,87587.0,87580.0,0.05527913]
[1766778480978,0.01121736,87587.0,87581.0,0.011418]
[1766778481177,0.01121736,87587.0,87580.0,0.043861]
[1766778481407,0.01121736,87587.0,87578.0,0.01141839]
[1766778481771,0.01148,87590.0,87578.0,0.01141839]
[1766778481997,0.01148,87590.0,87581.0,0.011418]
[1766778482173,0.01148,87590.0,87580.0,0.01141813]
[1766778482800,0.01148,87590.0,87579.0,0.00683639]
[1766778483002,0.01148,87590.0,87581.0,0.011418]
[1766778483292,0.01148,87590.0,87579.0,0.00683639]
[1766778484382,0.01148,87590.0,87580.0,0.04226084]
[1766778484604,0.0002,87597.0,87592.0,0.01141656]
[1766778484805,0.01168,87597.0,87587.0,0.01141721]
[1766778485048,0.01168,87597.0,87592.0,0.01141656]
[1766778485299,0.0002,87609.0,87593.0,0.00799181]
[1766778485449,0.01148,87607.0,87597.0,0.000549]
[1766778485648,0.01148,87607.0,87591.0,0.01141669]
[1766778485968,0.01148,87607.0,87590.0,0.01141682]
[1766778486593,0.01148,87607.0,87591.0,0.01141669]
[1766778486796,0.01148,87607.0,87590.0,0.01141682]
[1766778487010,0.01148,87607.0,87591.0,0.01141669]
[1766778487408,0.01148,87607.0,87590.0,0.01141682]
[1766778487754,0.01148,87607.0,87591.0,0.01141669]
[1766778488458,0.01148,87607.0,87587.0,0.09908945]
[1766778488594,0.011415,87604.0,87587.0,0.03058665]
[1766778488792,0.06855324,87607.0,87587.0,0.03058665]
[1766778488793,0.07567646,87603.0,87587.0,0.03058665]
[1766778489124,0.07567646,87603.0,87586.0,0.05348399]
[1766778489330,0.01148,87607.0,87588.0,0.01141708]
[1766778489537,0.01148,87607.0,87589.0,0.01141695]
[1766778490242,0.01148,87607.0,87590.0,0.01141682]
[1766778491265,0.01148,87607.0,87591.0,0.01141669]
[1766778491464,0.01148,87607.0,87592.0,0.02019063]
[1766778491780,0.01148,87607.0,87594.0,0.0114163]
[1766778492127,0.01148,87607.0,87593.0,0.01141643]
[1766778492329,0.01148,87607.0,87591.0,0.01141669]
[1766778492577,0.01148,87607.0,87590.0,0.45972523]
[1766778492721,0.01148,87607.0,87591.0,0.01141669]
[1766778493118,0.01148,87607.0,87592.0,0.01141656]
[1766778493492,0.01148,87607.0,87591.0,0.01141669]
[1766778494018,0.01148,87607.0,87592.0,0.01141656]
[1766778496078,0.01148,87607.0,87591.0,0.01141669]
[1766778496668,0.01148,87607.0,87592.0,0.01141656]
[1766778496847,0.01148,87607.0,87593.0,0.01141643]
[1766778497119,0.01148,87607.0,87593.0,0.07757911]
[1766778498025,0.01148,87607.0,87593.0,0.06616268]
[1766778499786,0.01148,87607.0,87593.0,0.07757911]
[1766778500220,0.01148,87607.0,87596.0,0.01141604]
[1766778500448,0.01148,87607.0,87595.0,0.06849666]
[1766778500671,0.0002,87609.0,87601.0,0.01141539]
[1766778500905,0.01148,87611.0,87605.0,0.01141487]
[1766778501148,0.01148,87611.0,87606.0,0.01141474]
[1766778501375,0.011131,87611.0,87603.0,0.01141513]
[1766778501567,0.011131,87611.0,87604.0,0.07679456]
[1766778501774,0.011131,87611.0,87604.0,0.08820956]
[1766778502195,0.011131,87611.0,87605.0,0.01141487]
[1766778502639,0.011131,87611.0,87604.0,0.07679456]
[1766778502833,0.011131,87611.0,87602.0,0.01141526]
[1766778503055,0.011131,87611.0,87602.0,0.06849123]
[1766778503533,0.011131,87611.0,87606.0,0.01141474]
[1766778503725,0.011131,87611.0,87605.0,0.01141487]
[1766778504282,0.011131,87611.0,87606.0,0.01141474]
[1766778504479,0.011131,87611.0,87607.0,0.06077533]
[1766778504916,0.011131,87611.0,87607.0,0.05177533]
[1766778505453,0.011131,87611.0,87607.0,0.06318994]
[1766778506386,0.011131,87611.0,87608.0,0.00114131]
[1766778506588,0.011131,87611.0,87605.0,0.01141487]
[1766778506997,0.011131,87611.0,87604.0,0.011415]
[1766778507404,0.011131,87611.0,87605.0,0.01141487]
[1766778508193,0.011131,87611.0,87601.0,0.4593581]
[1766778508394,0.011131,87611.0,87603.0,0.01141513]
[1766778508648,0.011131,87611.0,87602.0,0.01141526]
[1766778509213,0.011131,87611.0,87604.0,0.011415]
[1766778509414,0.000549,87604.0,87597.0,0.0002]
[1766778509622,0.000549,87604.0,87593.0,0.03058665]
[1766778509831,0.00035,87593.0,87590.0,0.44794271]
[1766778510057,0.01141487,87605.0,87590.0,8.172e-05]
[1766778510255,0.011415,87604.0,87590.0,8.172e-05]
[1766778510480,0.01141487,87605.0,87590.0,0.44802443]
[1766778510659,0.01141487,87605.0,87591.0,0.0622169]
[1766778510861,0.01141487,87605.0,87590.0,0.44802443]
[1766778511516,0.06848903,87606.0,87590.0,0.44802443]
[1766778511672,0.01141487,87605.0,87590.0,0.44802443]
[1766778511870,0.01148,87607.0,87590.0,0.44802443]
[1766778512073,0.01141474,87606.0,87590.0,0.44802443]
[1766778512282,0.01141474,87606.0,87591.0,0.06792558]
[1766778512503,0.01141474,87606.0,87590.0,0.47861108]
[1766778512913,0.01141487,87605.0,87590.0,0.47861108]
[1766778513367,0.01141487,87605.0,87591.0,0.03058665]
[1766778514246,0.011415,87604.0,87591.0,0.03058665]
[1766778514611,0.01141487,87605.0,87591.0,0.03058665]
[1766778514817,0.011415,87604.0,87591.0,0.03058665]
[1766778515020,0.01141474,87606.0,87591.0,0.03058665]
[1766778515925,0.01148,87607.0,87591.0,0.03058665]
[1766778516540,0.01141474,87606.0,87591.0,0.03058665]
[1766778517140,0.02289461,87607.0,87591.0,0.03058665]
[1766778517334,0.02289461,87607.0,87592.0,0.03058665]
[1766778517470,0.02289461,87607.0,87591.0,0.03058665]
[1766778517666,0.01141487,87605.0,87591.0,0.03058665]
[1766778519127,0.01141487,87605.0,87590.0,8.172e-05]
[1766778519327,0.01141513,87603.0,87590.0,8.172e-05]
[1766778519531,0.01141526,87602.0,87590.0,8.172e-05]
[1766778519792,0.01141474,87606.0,87590.0,8.172e-05]
[1766778520626,0.23969709,87611.0,87582.0,0.04073787]
[1766778520627,8.1e-05,87590.0,87582.0,0.04073787]
[1766778520828,0.00018814,87590.0,87582.0,0.04073787]
[1766778521034,0.00010714,87590.0,87582.0,0.04073787]
[1766778521245,0.00010714,87590.0,87582.0,0.01141787]
[1766778521667,0.00010714,87590.0,87583.0,0.01141774]
[1766778521884,0.00010714,87590.0,87585.0,0.01141748]
[1766778522092,1.4e-07,87590.0,87586.0,0.01141734]
[1766778522524,0.00972637,87596.0,87591.0,0.01141669]
[1766778522712,0.44794271,87610.0,87593.0,0.01141643]
[1766778522919,0.01144,87609.0,87596.0,0.000443]
[1766778523300,0.01144,87609.0,87590.0,0.44794271]
[1766778523497,0.02285435,87609.0,87590.0,0.45935953]
[1766778523712,0.01144,87609.0,87592.0,0.01141656]
[1766778523875,0.01144,87609.0,87593.0,0.01141643]
[1766778526108,0.01144,87609.0,87593.0,0.06849828]
[1766778526286,0.01144,87609.0,87595.0,0.01141617]
[1766778526484,0.01144,87608.0,87595.0,0.01141617]
[1766778526666,0.01144,87608.0,87596.0,0.06532283]
[1766778527214,0.01144,87608.0,87596.0,0.03216089]
[1766778527429,0.01144,87608.0,87590.0,0.44794271]
[1766778528616,0.01144,87608.0,87590.0,0.45935953]
[1766778529243,0.01144,87608.0,87591.0,0.01141669]
[1766778529658,0.01144,87608.0,87590.0,0.45935953]
[1766778531079,0.01144,87608.0,87591.0,0.01141669]
[1766778531739,0.01144,87608.0,87592.0,0.01141656]
[1766778531975,0.01144,87608.0,87594.0,0.0114163]
[1766778532102,0.01144,87608.0,87593.0,0.01141643]
[1766778532304,0.01144,87608.0,87594.0,0.0114163]
[1766778532512,0.00904467,87608.0,87594.0,0.0114163]
[1766778532918,0.00904467,87608.0,87595.0,0.01141617]
[1766778533118,0.00904467,87608.0,87598.0,0.01141578]
[1766778533313,0.01144,87607.0,87599.0,0.01141565]
[1766778533645,0.01144,87607.0,87597.0,0.06849518]
[1766778533646,0.01144,87607.0,87597.0,0.01141591]
[1766778534196,0.01113797,87607.0,87596.0,0.01141604]
[1766778534403,0.0108359,87607.0,87596.0,0.01141604]
[1766778535576,0.0108359,87607.0,87597.0,0.01141591]
[1766778535783,0.0108359,87607.0,87592.0,0.02285656]
[1766778536146,0.0108359,87607.0,87593.0,0.01141643]
[1766778536590,0.0108359,87607.0,87589.0,0.05215482]
[1766778536801,0.0108359,87607.0,87591.0,0.01144]
[1766778537605,0.01141487,87605.0,87587.0,0.04073787]
[1766778537774,0.45935823,87600.0,87582.0,0.01144]
[1766778537973,0.02285565,87599.0,87582.0,0.01144]
[1766778538173,0.01141578,87598.0,87582.0,0.01144]
[1766778538380,0.02285565,87599.0,87582.0,0.01144]
[1766778538762,0.01144,87599.0,87582.0,0.01144]
[1766778539416,0.02285565,87599.0,87582.0,0.01144]
[1766778539781,0.01141591,87597.0,87582.0,0.01144]
[1766778541008,0.01141591,87597.0,87577.0,0.12390593]
[1766778541228,0.01141591,87597.0,87577.0,0.00030714]
[1766778541229,0.01141643,87593.0,87577.0,0.00030714]
[1766778541665,0.05707955,87598.0,87577.0,0.00030714]
[1766778541866,0.01141604,87596.0,87577.0,0.01172566]
[1766778542028,0.01141591,87597.0,87578.0,0.01141839]
[1766778542657,0.01141591,87597.0,87577.0,0.01172566]
[1766778542901,0.05554672,87597.0,87578.0,0.01141839]
[1766778543105,0.01144,87599.0,87585.0,0.01141748]
[1766778543516,0.010891,87599.0,87594.0,0.0114163]
[1766778543693,0.010891,87599.0,87591.0,0.01141669]
[1766778543904,0.01141435,87609.0,87590.0,0.13029434]
[1766778544086,0.01141461,87607.0,87590.0,0.11887752]
[1766778544513,0.01141474,87606.0,87587.0,0.01144]
[1766778545107,0.06851284,87608.0,87586.0,0.01144]
[1766778545280,0.01141513,87603.0,87586.0,0.01144]
[1766778545487,0.011415,87604.0,87586.0,0.02285734]
[1766778545693,0.01141487,87605.0,87586.0,0.02285734]
[1766778546172,0.011415,87604.0,87586.0,0.01144]
[1766778546374,0.01141474,87606.0,87587.0,0.01141721]
[1766778547579,0.01141487,87605.0,87586.0,0.01141734]
[1766778547760,0.08474691,87604.0,87586.0,0.01141734]
[1766778547960,0.08474691,87604.0,87587.0,0.01141721]
[1766778548171,0.08474691,87604.0,87586.0,0.01141734]
[1766778549020,0.01141487,87605.0,87586.0,0.01141734]
[1766778549214,0.01141474,87606.0,87586.0,0.01141734]
[1766778549666,0.06848767,87607.0,87586.0,0.01141734]
[1766778550728,0.01141474,87606.0,87587.0,0.01141721]
[1766778551548,0.01141487,87605.0,87586.0,0.01141734]
[1766778551750,0.07447503,87604.0,87585.0,0.02285748]
[1766778552158,0.06306003,87604.0,87586.0,0.01141734]
[1766778552853,0.13155049,87604.0,87585.0,0.01144]
[1766778553046,0.13155049,87604.0,87575.0,0.01141878]
[1766778553047,0.01141565,87599.0,87584.0,0.01144]
[1766778553255,0.01144,87598.0,87580.0,0.44794271]
[1766778553791,0.01144,87598.0,87581.0,0.011418]
[1766778554382,0.01144,87598.0,87580.0,0.44794271]
[1766778554383,0.01144,87598.0,87587.0,0.01141721]
[1766778554550,0.01089,87598.0,87589.0,0.01141695]
[1766778555137,0.01141435,87609.0,87589.0,0.01141695]
[1766778555435,0.02285448,87608.0,87588.0,0.45935979]
[1766778555776,0.01141461,87607.0,87589.0,0.01141695]
[1766778555974,0.01141487,87605.0,87588.0,0.44794271]
[1766778556783,0.01141487,87605.0,87586.0,0.01141734]
[1766778556941,0.011415,87604.0,87585.0,0.01141748]
[1766778558334,0.01141578,87598.0,87580.0,0.44794271]
[1766778558612,0.02285565,87599.0,87580.0,0.44794271]
[1766778558815,0.01141578,87598.0,87580.0,0.44794271]
[1766778559357,0.02285565,87599.0,87580.0,0.45936084]
[1766778559997,0.02285565,87599.0,87580.0,0.44794271]
[1766778560314,0.01141578,87598.0,87580.0,0.45936084]
[1766778560653,0.01141578,87598.0,87580.0,0.44794271]
[1766778561477,0.01141578,87598.0,87577.0,0.06881776]
[1766778561478,0.01141682,87590.0,87577.0,0.00030714]
[1766778561685,0.000549,87580.0,87577.0,0.00030714]
[1766778561908,0.01144,87589.0,87577.0,0.00030714]
[1766778564477,0.02285695,87589.0,87577.0,0.00030714]
[1766778566112,0.06850364,87587.0,87577.0,1.4e-07]
[1766778566573,0.01141748,87585.0,87577.0,1.4e-07]
[1766778566928,0.01141761,87584.0,87577.0,1.4e-07]
[1766778567146,0.01141748,87585.0,87577.0,1.4e-07]
[1766778567352,0.01141734,87586.0,87577.0,1.4e-07]
[1766778568307,0.01141748,87585.0,87577.0,1.4e-07]
[1766778568436,0.01141761,87584.0,87577.0,1.4e-07]
[1766778568637,0.01141774,87583.0,87577.0,1.4e-07]
[1766778568895,0.01141787,87582.0,87577.0,1.4e-07]
[1766778569256,0.01141813,87580.0,87577.0,1.4e-07]
[1766778569469,0.01141761,87584.0,87577.0,1.4e-07]
[1766778569644,0.01141748,87585.0,87577.0,1.4e-07]
[1766778569858,0.01141761,87584.0,87577.0,1.4e-07]
[1766778570222,0.01141774,87583.0,87577.0,1.4e-07]
[1766778570420,0.01141761,87584.0,87577.0,1.4e-07]
[1766778570596,0.01141774,87583.0,87577.0,1.4e-07]
[1766778570799,0.01141761,87584.0,87577.0,1.4e-07]
[1766778571005,0.011418,87581.0,87577.0,1.4e-07]
[1766778571204,0.0685069,87583.0,87577.0,1.4e-07]
[1766778571617,0.01141787,87582.0,87577.0,1.4e-07]
[1766778571823,0.01141774,87583.0,87577.0,1.4e-07]
[1766778572027,0.01144,87582.0,87566.0,0.00744014]
[1766778572221,0.01144,87582.0,87566.0,0.00779753]
[1766778573347,0.01144,87582.0,87566.0,0.01921748]
[1766778573573,0.01144,87582.0,87567.0,0.01141982]
[1766778573781,0.01144,87582.0,87566.0,0.01921748]
[1766778573994,0.01144,87582.0,87567.0,0.01141982]
[1766778574843,0.01144,87582.0,87569.0,0.01141956]
[1766778575044,0.01144,87582.0,87568.0,0.01141969]
[1766778575287,0.01144,87582.0,87567.0,0.01141982]
[1766778575630,0.01144,87582.0,87568.0,0.01141969]
[1766778575833,0.01144,87582.0,87567.0,0.01141982]
[1766778576581,0.01144,87582.0,87570.0,0.01141943]
[1766778577556,0.01144,87582.0,87566.0,0.00035739]
[1766778577790,0.01166143,87570.0,87566.0,0.00035739]
[1766778577984,0.01166143,87570.0,87562.0,0.0004]
[1766778577985,0.000242,87570.0,87562.0,0.0004]
[1766778578123,0.01141943,87570.0,87562.0,0.0004]
[1766778578322,0.09507709,87569.0,87562.0,0.000208]
[1766778578562,0.08365753,87569.0,87562.0,0.000208]
[1766778578767,0.08365753,87569.0,87549.0,0.01144]
[1766778578768,0.01141995,87566.0,87549.0,0.01144]
[1766778578973,0.01142034,87563.0,87550.0,0.01148]
[1766778579233,0.01142034,87563.0,87549.0,0.01148]
[1766778579543,0.0114206,87561.0,87549.0,0.01148]
[1766778579903,0.03349052,87562.0,87549.0,0.01148]
[1766778580234,0.00035766,87570.0,87567.0,0.05709873]
[1766778580458,0.00035766,87570.0,87567.0,0.06851855]
[1766778581056,0.00035766,87570.0,87563.0,0.01142034]
[1766778581269,0.00035766,87570.0,87555.0,0.01142139]
[1766778581472,0.00035766,87570.0,87562.0,0.01148]
[1766778581473,5.166e-05,87570.0,87562.0,0.01148]
[1766778584778,5.166e-05,87570.0,87562.0,0.02290047]
[1766778585224,5.166e-05,87570.0,87563.0,0.01142034]
[1766778585428,5.166e-05,87570.0,87564.0,0.01142021]
[1766778585628,5.166e-05,87570.0,87563.0,0.01142034]
[1766778585832,5.166e-05,87570.0,87562.0,0.02290047]
[1766778586361,5.166e-05,87570.0,87563.0,0.01142034]
[1766778586778,5.166e-05,87570.0,87562.0,0.02290047]
[1766778586980,5.166e-05,87570.0,87563.0,0.01142034]
[1766778587388,5.166e-05,87570.0,87562.0,0.01148]
[1766778587749,5.166e-05,87570.0,87562.0,0.02290047]
[1766778587964,5.166e-05,87570.0,87563.0,0.01142034]
[1766778588165,5.166e-05,87570.0,87565.0,0.01142008]